Cogmind - Beta 13 @@@ ROGUE MODE // 2024.04.06 @ 19:59:20 Player: Waste Result: Self-destructed Performance ------------- Evolutions (6) 3000 Regions Visited (29) 5800 Robots Destroyed (273) 1365 Value Destroyed (12894) 12894 Prototype IDs (72) 1440 Alien Tech Used (1) 200 Bonus (4152) 4152 TOTAL SCORE: 28851 Bonus ------- High Alert Combat Kills 950 Follower Combat Kills 1311 Entered Garrisons 200 Aligned with FarCom 300 Met Data Miner 300 Acquired ECA 300 Met Warlord at Base 500 MAIN.C Attacked Warlord 500 Warlord Defense Kills 188 Friendly Fire -397 Cogmind --------- Core Integrity 181/1150 Matter 157/300 Energy 144/310 System Corruption 6% Temperature Cool (81) Movement Treading (320) Ox2 Location -4/Extension Parts ------- > --- POWER (2) -------- Reinforced Fission Core > --- PROPULSION (6) --- Improved Treads Improved Treads Flexi-carbon Leg Myomer Leg > --- UTILITY (9) ------ Advanced Cooling System Huge Storage Unit Advanced Signal Interpreter Advanced Targeting Computer Core Analyzer Improved Energy Mantle > --- WEAPON (3) ------- Bore Cannon Hardcell Cannon > --- INVENTORY (25) --- Vortex Chain Reactor Improved Treads Improved Treads Matter Compressor (250) Advanced Terrain Scanner Experimental Cloaking Device Damper Plating Authchip [Processor] Splice Drone Bay (6/6) Matter Neutralizer Heavy Neutron Cannon Firepult Powered Hammer Peak State ------------ > --- POWER ------------ F-cell Engine Reinforced Antimatter Reactor > --- PROPULSION ------- Armored Medium Treads Armored Medium Treads Heavy Treads Heavy Treads > --- UTILITY ---------- Advanced Cooling System Huge Storage Unit Advanced Terrain Scan Processor Experimental Cloaking Device Layered Light Armor Plating Improved Energy Mantle Hacking Suite Improved Hacking Suite Ghost Barrier > --- WEAPON ----------- Heavy Plasma Cannon Advanced Plasma Cannon Heavy Neutron Cannon > --- INVENTORY -------- Neutrino Core Antimatter Reactor Vortex Chain Reactor Experimental Cooling System Huge Storage Unit Matter Compressor Improved Sensor Array Advanced Terrain Scanner Core Analyzer Medium Reactive Plating Damper Plating Authchip [Processor] Long-range Tractor Beam Splice Drone Bay Advanced Plasma Cannon Firepult Improved KE Penetrator Hardcell Cannon Missile Launcher Powered Hammer [Rating: 133] Favorites ----------- Power Improved Deuterium Engine Engine Improved Deuterium Engine Power Core Light Nuclear Core Reactor Antimatter Reactor Propulsion Improved Treads Treads Improved Treads Leg Aluminum Leg Wheel Wheel Hover Unit Combat Gravmag System Utility Advanced Targeting Computer Device Improved Heat Sink Storage Huge Storage Unit Processor Advanced Targeting Computer Hackware Hacking Suite Protection Hardened Medium Armor Plating Weapon Cooled Particle Cannon Energy Gun Wave Gun Energy Cannon Cooled Particle Cannon Ballistic Gun Precision Assault Rifle Ballistic Cannon Assault Cannon Launcher Missile Launcher Special Weapon RU-N14's Throwing Claymores Impact Weapon Powered Hammer Build | -11 -10 -10 -9 -9 -9 -8 -8 -8 -8 -8 -7 -7 -7 -7 -6 -6 -6 -6 -6 -5 -5 -5 -5 -5 -5 -5 -4 -4 -4 ------- Run | Yrd Mat Min Mat Min Exi Min Mat Gar Mat Sto Fac Low Low Dat Pro Fac Low Low Zio Pro Fac Was Fac Upp Upp War Pro Fac Ext Slots Evolved 12 | . . . 2 . . . 2 . . . 2 . . . . 2 . . . . 2 . . . . . . 2 . Power 1 | . . . . . . . . . . . . . . . . . . . . . . . . . . . . 1 . Propulsion 3 | . . . 1 . . . 1 . . . . . . . . 1 . . . . . . . . . . . . . Utility 7 | . . . 1 . . . 1 . . . 1 . . . . 1 . . . . 2 . . . . . . 1 . Weapon 1 | . . . . . . . . . . . 1 . . . . . . . . . . . . . . . . . . Parts Attached 363 | . 6 . 12 1 3 3 27 18 16 5 16 1 3 . 7 20 7 4 10 16 19 7 16 6 15 21 7 48 49 Power 26 | . 1 . 1 . . . 1 1 1 . 2 1 . . . 2 . . . 2 . 1 1 . . 1 . 6 5 Engine 13 | . 1 . 1 . . . 1 1 1 . 2 1 . . . 2 . . . 2 . . . . . . . 1 . Core 4 | . . . . . . . . . . . . . . . . . . . . . . . . . . . . 1 3 Reactor 9 | . . . . . . . . . . . . . . . . . . . . . . 1 1 . . 1 . 4 2 Propulsion 83 | . 1 . 4 1 . 2 11 3 8 . 5 . 1 . 1 3 2 . . 3 3 2 2 1 . 3 . 10 17 Treads 41 | . . . . . . . 5 3 1 . 5 . 1 . 1 3 2 . . 3 3 2 2 1 . 3 . . 6 Leg 33 | . 1 . 4 1 . 2 6 . 7 . . . . . . . . . . . . . . . . . . 2 10 Wheel 5 | . . . . . . . . . . . . . . . . . . . . . . . . . . . . 5 . Hover 4 | . . . . . . . . . . . . . . . . . . . . . . . . . . . . 3 1 Flight . | . . . . . . . . . . . . . . . . . . . . . . . . . . . . . . Utility 139 | . 2 . 1 . 3 . 7 4 5 3 4 . 1 . 4 10 3 2 3 9 10 1 7 5 8 9 7 18 13 Device 85 | . 1 . . . 2 . 3 1 4 1 1 . 1 . 2 6 3 1 2 7 6 1 4 5 5 7 5 10 7 Storage 6 | . 1 . . . 1 . . . . 1 . . . . . . . . . . . . 1 . . . . 2 . Processor 9 | . . . . . . . 1 . . . 1 . . . . . . . . . 1 . . . . . . 6 . Hackware 7 | . . . . . . . . . . . . . . . . 1 . . . . 2 . 2 . . 1 . . 1 Protection 32 | . . . 1 . . . 3 3 1 1 2 . . . 2 3 . 1 1 2 1 . . . 3 1 2 . 5 Artifact . | . . . . . . . . . . . . . . . . . . . . . . . . . . . . . . Weapon 115 | . 2 . 6 . . 1 8 10 2 2 5 . 1 . 2 5 2 2 7 2 6 3 6 . 7 8 . 14 14 Energy Gun 6 | . . . . . . . . . . . . . . . . 1 . . . . . . . . . 1 . 1 3 Energy Cannon 27 | . . . 1 . . . . . . . 4 . . . 1 2 1 . 2 . . 1 2 . 2 3 . 6 2 Ballistic Gun 33 | . . . 1 . . . 4 8 1 1 . . . . . 1 . . . . 5 2 2 . 1 . . 2 5 Ballistic Cannon 18 | . 2 . 4 . . . 4 . . . . . . . . . . . . 1 . . . . 1 1 . 1 4 Launcher 17 | . . . . . . 1 . 2 1 1 . . . . 1 . 1 2 2 1 . . 2 . 1 1 . 1 . Special Weapon 1 | . . . . . . . . . . . . . . . . . . . 1 . . . . . . . . . . Impact Weapon 13 | . . . . . . . . . . . 1 . 1 . . 1 . . 2 . 1 . . . 2 2 . 3 . Slashing Weapon . | . . . . . . . . . . . . . . . . . . . . . . . . . . . . . . Piercing Weapon . | . . . . . . . . . . . . . . . . . . . . . . . . . . . . . . Special Melee Weapon . | . . . . . . . . . . . . . . . . . . . . . . . . . . . . . . Unidentified Prototypes 19 | . . . 2 . 1 . . . . . 1 . 1 . . 2 . . 2 . 1 . 1 . . 7 . 1 . Corrupted Parts 1 | . . . . . . . . . . . . . . . . . . . . 1 . . . . . . . . . System Corruption 1 | . . . . . . . . . . . . . . . . . . . . 1 . . . . . . . . . Parts Lost 81 | . 2 . 1 . . 1 4 7 3 2 . . . . . 1 1 1 . 6 . . . . 4 . 1 26 21 Power 10 | . 1 . . . . . . 1 . . . . . . . . . . . 2 . . . . . . . 4 2 Propulsion 25 | . . . . . . . 2 3 1 . . . . . . 1 1 . . 1 . . . . . . . 7 9 Utility 27 | . . . . . . 1 . 2 2 2 . . . . . . . . . 2 . . . . 4 . 1 10 3 Weapon 19 | . 1 . 1 . . . 2 1 . . . . . . . . . 1 . 1 . . . . . . . 5 7 Highest Loss Streak 11 | . 1 . 1 . . 1 3 2 2 1 . . . . . 1 1 1 . 3 . . . . 3 . 1 11 11 To Critical Strikes 3 | . . . . . . . . . . . . . . . . . 1 . . . . . . . . . . 1 1 Average Slot Usage (%) 94 | . 88 100 94 100 100 88 99 99 98 99 97 100 99 100 100 99 99 99 97 98 99 93 87 88 87 87 88 76 95 Engine 5 | . 13 14 11 11 11 11 9 9 9 9 6 7 7 7 7 6 6 6 6 5 5 . . . . . . 1 . Reactor 1 | . . . . . . . . . . . . . . . . . . . . . . 4 4 5 5 5 5 6 8 Treads 19 | . . . . . . . 13 13 9 . 28 30 30 35 35 36 36 37 37 36 32 31 21 22 22 22 22 7 4 Leg 10 | . 28 28 33 33 33 33 21 22 26 36 1 . . . . . . . . . . . . . . . . 2 13 Device 9 | . 5 14 11 11 11 . 7 9 10 15 7 15 14 14 13 8 6 5 6 8 11 11 10 11 10 11 10 14 8 Storage 7 | . 14 14 11 11 11 11 9 9 9 9 7 7 7 7 7 6 6 6 6 6 5 5 5 5 5 5 5 4 5 Processor 9 | . . . . . . . 9 9 9 9 13 15 14 14 14 12 12 12 12 12 11 11 11 11 . . . 10 17 Hackware 5 | . . . . . . . . . . . . . . . . 4 6 6 6 3 10 11 15 16 16 17 16 9 8 Protection 5 | . . . 6 11 11 11 10 8 6 1 7 . . . . 4 6 6 5 6 5 5 . . 10 8 11 1 4 Energy Cannon 6 | . . . . . . . . . . . 16 23 21 14 20 16 17 14 10 11 . 4 2 . 5 7 16 6 2 Ballistic Gun 5 | . . . . . . . 8 17 17 17 3 . . . . . . . . . 15 6 12 16 7 . . 2 7 Ballistic Cannon 3 | . 15 28 21 22 22 13 9 . . . . . . . . . . . . 2 . . . . 2 3 . . 1 Naked Turns . | . . . . . . . . . . . . . . . . . . . . . . . . . . . . . . Heaviest Build 169 | 14 51 50 64 64 64 63 68 61 63 106 115 113 113 109 132 120 124 126 119 134 118 136 122 115 136 147 147 169 162 Greatest Support 195 | 20 20 20 33 33 33 33 80 72 65 45 92 92 112 112 112 132 129 126 126 131 131 191 191 191 191 195 194 194 125 Greatest Overweight (x) 14 | . 2 2 1 1 1 1 3 3 1 2 4 1 1 . 1 1 1 . . 1 . 1 . . . . . 14 12 Average Overweight (x) . | . . 2 1 1 1 1 . . . 1 1 1 . . . . . . . . . . . . . . . 2 3 Largest Inventory Capacity 25 | . 20 20 20 20 20 20 20 20 20 25 25 25 25 25 25 25 25 25 25 25 25 25 25 25 25 25 25 25 25 Average Capacity 23 | . 14 20 20 20 20 20 20 20 20 24 25 25 25 25 25 25 25 25 25 25 25 25 25 25 25 25 25 23 25 Most Carried 25 | . 12 12 20 20 20 20 20 20 20 25 25 25 25 24 25 25 25 25 25 25 25 25 25 25 25 25 25 25 25 Average Carried 22 | . 9 11 18 19 19 20 18 17 19 20 24 24 24 24 24 24 24 24 25 23 21 24 24 24 22 23 25 21 24 Final Capacity 25 | 8 20 20 20 20 20 20 20 20 20 25 25 25 25 25 25 25 25 25 25 25 25 25 25 25 25 25 25 25 25 Final Carried 25 | 6 11 12 20 20 20 20 20 20 19 25 25 25 24 24 25 25 24 25 25 21 25 25 25 25 23 25 25 25 18 Class Distribution -------------------- 21% | Mutant 18% | Scavenger-Mutant 17% | Scavenger-Skirmisher 14% | Skirmisher 6% | Hacker-Skirmisher 6% | Hacker-Tank 6% | Scavenger-Gunner 3% | Hacker-Mutant Dominant Class ---------------- Mutant | -10/Materials Mutant | -10/Mines Mutant | -9/Materials Scavenger-Mutant | -9/Mines Scavenger-Mutant | -9/Exiles Mutant | -8/Mines Mutant | -8/Materials Mutant | -8/Garrison Scavenger-Mutant | -8/Materials Scavenger-Mutant | -8/Storage Skirmisher | -7/Factory Skirmisher | -7/Lower Caves Skirmisher | -7/Lower Caves Mutant | -7/Data Miner Skirmisher | -6/Proximity Caves Scavenger-Skirmisher | -6/Factory Skirmisher | -6/Lower Caves Scavenger-Skirmisher | -6/Lower Caves Scavenger-Mutant | -6/Zion Scavenger-Skirmisher | -5/Proximity Caves Scavenger-Skirmisher | -5/Factory Scavenger-Skirmisher | -5/Waste Hacker-Skirmisher | -5/Factory Hacker-Skirmisher | -5/Upper Caves Hacker-Tank | -5/Upper Caves Hacker-Mutant | -5/Warlord Hacker-Tank | -4/Proximity Caves Scavenger-Assassin | -4/Factory Scavenger-Gunner | -4/Extension Resources | -11 -10 -10 -9 -9 -9 -8 -8 -8 -8 -8 -7 -7 -7 -7 -6 -6 -6 -6 -6 -5 -5 -5 -5 -5 -5 -5 -4 -4 -4 ----------- Run | Yrd Mat Min Mat Min Exi Min Mat Gar Mat Sto Fac Low Low Dat Pro Fac Low Low Zio Pro Fac Was Fac Upp Upp War Pro Fac Ext Matter Collected 9005 | 191 271 72 412 86 . 92 946 771 659 325 368 10 17 . 109 456 134 155 90 163 525 379 145 586 431 221 80 569 742 Remotely 102 | . . . . . . . 59 . . . . . . . . . . . . . . . . 43 . . . . . Salvage Created 11800 | . 360 19 503 104 . 174 755 676 709 391 664 . . . 120 781 223 213 . 405 292 1625 246 279 411 93 266 1084 1407 Parts 514 | . 24 3 29 12 . 11 50 49 38 26 25 . . . 10 26 10 8 . 15 17 10 18 5 21 4 15 44 44 Haulers Intercepted 9 | . . . 3 . . . 3 . . 1 1 . . . . 1 . . . . . . . . . . . . . Recyclers Shooed 5 | . 1 . 1 1 . . . . 1 . . . . . . . . . . . . . . . . . . . 1 Parts Field Recycled . | . . . . . . . . . . . . . . . . . . . . . . . . . . . . . . Retrieved Matter . | . . . . . . . . . . . . . . . . . . . . . . . . . . . . . . Parts Self-Destructed 77 | . . . . . . . . . . . . 5 . . 8 . 9 2 4 15 . . . 3 16 . 15 . . Prevented 3 | . . . . . . . . . . . . . . . . . . . . 1 . . . . 2 . . . . Kills | -11 -10 -10 -9 -9 -9 -8 -8 -8 -8 -8 -7 -7 -7 -7 -6 -6 -6 -6 -6 -5 -5 -5 -5 -5 -5 -5 -4 -4 -4 ------- Run | Yrd Mat Min Mat Min Exi Min Mat Gar Mat Sto Fac Low Low Dat Pro Fac Low Low Zio Pro Fac Was Fac Upp Upp War Pro Fac Ext Combat Hostiles Destroyed 241 | . 8 2 11 6 . 9 21 29 12 9 10 . . . 4 12 6 7 . 12 5 6 10 3 10 2 6 18 23 Melee 4 | . . . . . . . . 1 1 . . . . . . . . . . . . . 1 . . . . 1 . Guns 77 | . 4 . . . . . 11 15 11 5 . . . . . . . . . . 5 . 2 3 6 . . 5 10 Cannons 83 | . 4 2 11 6 . 3 10 . . . 8 . . . 2 10 2 2 . 4 . 1 . . . 2 5 5 6 AOE 59 | . . . . . . 6 . 13 . 4 . . . . 2 . 3 5 . 8 . . 7 . 4 . . 6 1 Classes Destroyed 21 | . 1 1 3 1 . 1 3 1 1 1 2 . . . 1 . . 1 . 1 . 1 . . . . . 1 1 Worker 4 | . . . . . . . 2 . . . . . . . . 1 . . . . . . . . . . . 1 . Builder 2 | . . . . . . . . . . 1 . . . . . . . . . . . . . . . . . 1 . Tunneler 1 | . . . . . . . . . . . . . . . . . . . . . . . . . . . . 1 . Hauler 9 | . . . 3 . . . 3 . . 1 1 . . . . 1 . . . . . . . . . . . . . Recycler 3 | . . . 1 . . . . . 1 . . . . . . . . . . . . . . . . . . 1 . Operator 6 | . . . . . . . . . 1 1 . . . . . 1 . . . . . . 1 . . . . 1 1 Drone 2 | . . . . . . . . . . . . . . . 2 . . . . . . . . . . . . . . Watcher 6 | . . . . . . . 2 . 1 1 1 . . . . . . . . . . . . . . . . 1 . Swarmer 55 | . . 2 . 4 . 3 3 6 . 4 . . . . . . 3 1 . 3 . . 9 . 4 1 3 5 4 Grunt 90 | . 8 . 8 1 . 5 11 14 6 2 1 . . . . 4 2 . . 6 . . . 2 3 1 . 5 11 Brawler 6 | . . . . . . 1 . . 1 . . . . . . . 1 . . 1 . . . . 1 . . 1 . Duelist 2 | . . . . 1 . . . . . . . . . . . . . . . . . . . . . . . . 1 Protector 1 | . . . . . . . . . . . . . . . . . . . . . . . . . . . . . 1 Sentry 26 | . . . 3 . . . 5 . 5 2 1 . . . . 3 . . . . 1 . 1 1 . . . . 4 Specialist 5 | . . . . . . . . . . . 4 . . . . . . . . . . . . . . . . . 1 Hunter 13 | . . . . . . . 2 2 . 1 . . . . 1 1 . . . 1 . . . . . . 2 3 . Programmer 27 | . . . . . . . . 7 . . 3 . . . 1 4 . . . . 4 . . . 2 . 1 4 1 Heavy 1 | . . . . . . . . . . . 1 . . . . . . . . . . . . . . . . . . Behemoth 1 | . . . . . . . . . . . . . . . . . . . . 1 . . . . . . . . . Compactor 6 | . . . . . . . . . . . . . . . . . . . . . . 6 . . . . . . . Decomposer 1 | . . . . . . . . . . . . . . . . . . . . 1 . . . . . . . . . Packrat 1 | . . . . . . . . . . . . . . . . . . . . . . . . 1 . . . . . Thug 4 | . . . . . . . . . . . . . . . . . . 4 . . . . . . . . . . . Savage 1 | . . . . . . . . . . . . . . . . . . . . . . . . . . . . . 1 Butcher 1 | . . . . . . . . . . . . . . . . . . 1 . . . . . . . . . . . Mutant 1 | . . . . . . . . . . . . . . . . . . 1 . . . . . . . . . . . Best Kill Streak 9 | . 2 2 3 4 . 3 5 7 4 5 3 . . . 2 3 3 6 . 5 2 2 5 3 4 2 3 7 9 Combat Bots Only 9 | . 2 2 3 4 . 3 5 7 3 4 3 . . . 2 3 3 6 . 5 2 2 5 3 4 2 3 7 9 Max Kills in Single Turn 4 | . 2 1 2 1 . 2 1 3 1 3 1 . . . 1 1 2 1 . 3 1 1 4 1 2 1 1 3 2 Gunslinging 1 | . 1 . . . . . . . . . . . . . . . . . . . . . . . . . . . . Exploded 4 | . . . . . . 2 . 3 . 2 . . . . 1 . 2 1 . 3 . . 4 . 2 . . 1 1 Melee 1 | . . . . . . . . 1 1 . . . . . . . . . . . . . 1 . . . . 1 . Uniques/NPCs Destroyed . | . . . . . . . . . . . . . . . . . . . . . . . . . . . . . . Combat | -11 -10 -10 -9 -9 -9 -8 -8 -8 -8 -8 -7 -7 -7 -7 -6 -6 -6 -6 -6 -5 -5 -5 -5 -5 -5 -5 -4 -4 -4 -------- Run | Yrd Mat Min Mat Min Exi Min Mat Gar Mat Sto Fac Low Low Dat Pro Fac Low Low Zio Pro Fac Was Fac Upp Upp War Pro Fac Ext Hostile Shots Fired 1592 | . 40 4 45 20 . 23 138 119 69 37 92 . . . 12 78 11 24 . 71 26 . 36 14 86 26 79 294 248 Missed 444 | . 17 1 11 8 . 5 25 39 23 14 38 . . . 1 24 4 8 . 14 5 . 11 6 9 10 20 82 69 Damage Taken 19144 | . 326 24 455 140 . 271 1720 1111 709 221 748 . . . 154 674 107 390 . 1030 325 . 412 129 1337 258 888 3917 3798 Core 2118 | . 49 . 39 54 . 31 141 183 99 34 96 . . . 26 69 . 20 . 35 30 . 57 13 83 53 37 767 202 Absorbed by Shields 1053 | . . . . . . . . . 24 88 . . . . . . 16 . . 129 120 . 75 47 297 . 44 162 51 Reduced by Siege Mode 147 | . . . . . . . . . . . . . . . . . . . . . . . . . 57 . 26 64 . Ignored by Resistances 108 | . . . . . . . . . . . . . . . 18 . . . . . . . . . . . 90 . . Regen/Repaired (Parts) 790 | . . . . . . . . . . . . . . . . . . . . . 235 . 446 . . 109 . . . Core Remaining (%) 72 | 100 . 80 . . . 69 . . . 16 . . . . 82 . . . . 85 . . . . . . 72 . . Volleys Fired 676 | . 20 3 41 8 . 13 85 95 44 24 25 . . . 7 29 16 14 . 32 12 10 21 10 21 11 20 64 51 Largest 3 | . 2 2 2 2 . 2 2 2 2 2 3 . . . 3 3 3 2 . 3 3 2 3 3 3 3 3 3 3 Hottest 298 | . 80 70 88 88 . 88 88 53 53 53 90 . . . 90 90 90 180 . 117 89 283 146 84 84 286 286 298 250 Shots Fired 1348 | . 40 6 75 16 . 19 149 149 86 46 74 . . . 17 88 42 19 . 61 37 11 43 30 52 33 44 88 123 Gun 617 | . 24 . . . . . 71 136 84 43 . . . . . . . . . . 37 1 31 30 49 . . 31 80 Cannon 677 | . 16 6 75 16 . 12 78 . . . 74 . . . 15 88 39 12 . 51 . 10 10 . . 33 44 55 43 Launcher 54 | . . . . . . 7 . 13 2 3 . . . . 2 . 3 7 . 10 . . 2 . 3 . . 2 . Special . | . . . . . . . . . . . . . . . . . . . . . . . . . . . . . . Kinetic 812 | . 16 6 75 16 . 12 149 136 84 43 . . . . . . . . . 10 37 1 31 30 49 . . 30 87 Thermal 451 | . . . . . . . . . . . 74 . . . 15 88 39 12 . 41 . 10 10 . . 33 44 56 29 Explosive 54 | . . . . . . 7 . 13 2 3 . . . . 2 . 3 7 . 10 . . 2 . 3 . . 2 . Electromagnetic 31 | . 24 . . . . . . . . . . . . . . . . . . . . . . . . . . . 7 Robot Hit Streak 46 | . 11 1 14 5 . 3 24 13 15 12 9 . . . 10 21 6 11 . 28 13 10 12 27 46 20 5 8 20 Robot Miss Streak 6 | . 3 4 4 2 . 2 4 5 2 1 2 . . . 1 2 2 1 . 1 1 3 2 . 1 3 2 4 6 Penetration Max 2 | . . . . . . . . . 1 . . . . . . . . . . . . . . . . . . . 2 Secondary Targets 8 | . 1 . . . . . 3 1 . . . . . . . . . . . . 1 . . . 1 . . . 1 Max Gunslinging Chain 1 | . 1 . . . . . 1 1 . . . . . . . . . . . . 1 . . . 1 . . . 1 Shots Hit Robots 872 | . 26 1 51 8 . 8 113 80 65 36 56 . . . 14 56 9 15 . 33 27 10 24 26 49 11 18 54 82 Core Hits 510 | . 16 2 19 6 . 18 54 65 26 20 13 . . . 4 22 6 21 . 28 10 13 15 10 19 7 7 51 58 Critical Kills 5 | . . . . . . . 1 . . . . . . . . . 1 . . . 1 . . . . . 1 1 . Critical Parts Destroyed 11 | . . . . . . . . 1 . . 2 . . . . . . . . . . . 1 . . . . 3 4 Critical Strikes 28 | . 2 . 3 . . . 2 1 . . 3 . . . . . 1 . . 1 1 . 1 . . . 1 4 8 Meltdown 3 | . . . . . . . . . . . . . . . . . 1 . . . . . . . . . 1 1 . Destroy 10 | . . . . . . . 1 1 . . . . . . . . . . . . 1 . 1 . . . . . 6 Blast 8 | . 1 . 3 . . . 1 . . . . . . . . . . . . 1 . . . . . . . . 2 Corrupt 1 | . 1 . . . . . . . . . . . . . . . . . . . . . . . . . . . . Smash 6 | . . . . . . . . . . . 3 . . . . . . . . . . . . . . . . 3 . Melee Attacks 50 | . . . . . . . . . . . 8 . 1 . . 4 . . 2 . 2 . . . . 4 . 29 . Impact 50 | . . . . . . . . . . . 8 . 1 . . 4 . . 2 . 2 . . . . 4 . 29 . Slashing . | . . . . . . . . . . . . . . . . . . . . . . . . . . . . . . Piercing . | . . . . . . . . . . . . . . . . . . . . . . . . . . . . . . Sneak Attacks 3 | . . . . . . . . . . . 2 . . . . 1 . . . . . . . . . . . . . Combat Hostiles 1 | . . . . . . . . . . . . . . . . 1 . . . . . . . . . . . . . Follow-up Attacks 4 | . . . . . . . . . . . . . . . . . . . . . . . . . . . . 4 . Damage Inflicted 28940 | . 390 38 1090 215 . 765 2626 3053 1301 905 1739 . . . 463 1687 408 1024 . 1590 706 841 978 515 1200 430 706 2695 3575 Guns 9713 | . 260 . . . . . 1377 1587 1264 593 . . . . . . . . . . 691 . 400 515 948 . . 241 1837 Cannons 11100 | . 129 38 1082 206 . 162 1163 . . . 1371 . . . 403 1593 218 351 . 758 . 349 33 . . 430 706 905 1203 Explosions 6968 | . . . . . . 603 . 1459 11 312 . . . . 60 . 190 673 . 824 . 492 526 . 252 . . 1037 529 Melee 940 | . . . . . . . . . . . 350 . . . . 78 . . . . . . . . . . . 512 . Ramming 219 | . 1 . 8 9 . . 86 7 26 . 18 . . . . 16 . . . 8 15 . 19 . . . . . 6 Kinetic 12969 | . 129 38 1082 206 . 162 2540 1587 1264 593 . . . . . . . . . 280 691 . 400 515 948 . . 298 2236 Thermal 9027 | . . . . . . . . . . . 1371 . . . 403 1593 218 351 . 478 . 841 33 . . 430 706 1347 1256 Explosive 5448 | . . . . . . 603 . 1459 11 312 . . . . 60 . 190 673 . 824 . . 526 . 252 . . 538 . Electromagnetic 337 | . 260 . . . . . . . . . . . . . . . . . . . . . . . . . . . 77 Impact 940 | . . . . . . . . . . . 350 . . . . 78 . . . . . . . . . . . 512 . Slashing . | . . . . . . . . . . . . . . . . . . . . . . . . . . . . . . Piercing . | . . . . . . . . . . . . . . . . . . . . . . . . . . . . . . Highest Corruption 14 | . . . . . . . . 2 2 2 . . . . . 2 2 2 2 1 4 4 4 4 14 14 . 11 11 Average Corruption 3 | . . . . . . . . 1 2 2 . . . . . 1 2 2 2 1 3 4 4 4 13 14 . 2 6 Corruption Purged 5 | . . . . . . . . . . . . . . . . . . . . . . . . . . . . . 5 Corruption Blocked . | . . . . . . . . . . . . . . . . . . . . . . . . . . . . . . Effects 235 | . . . . . . . . 16 12 15 . . . . . 16 11 7 2 6 10 20 20 12 23 2 . 12 51 Message Errors 64 | . . . . . . . . 3 4 3 . . . . . 5 5 2 2 1 3 3 4 4 6 . . 3 16 Matter Fused 63 | . . . . . . . . 7 5 3 . . . . . 3 1 3 . 2 4 7 5 5 4 1 . 3 10 Heat Flow Errors 22 | . . . . . . . . 1 . 3 . . . . . 1 . 1 . 1 . 3 3 . 3 . . . 6 Energy Discharges 24 | . . . . . . . . 2 . 2 . . . . . 2 2 . . . 1 2 1 1 1 1 . 3 6 Parts Rejected 3 | . . . . . . . . . 1 . . . . . . . 1 . . 1 . . . . . . . . . Parts Fused 2 | . . . . . . . . . . . . . . . . . . . . . . 1 . 1 . . . . . Data Loss (minor) 28 | . . . . . . . . 1 1 2 . . . . . 3 1 1 . . 1 2 2 1 5 . . 3 5 Data Loss (major) 9 | . . . . . . . . . . . . . . . . 1 1 . . 1 . 1 2 . 1 . . . 2 Misfires 9 | . . . . . . . . 1 . 1 . . . . . 1 . . . . 1 . 3 . . . . . 2 Alerts 7 | . . . . . . . . 1 1 . . . . . . . . . . . . 1 . . 1 . . . 3 Weapon Failures 4 | . . . . . . . . . . 1 . . . . . . . . . . . . . . 2 . . . 1 Overload Shots 4 | . . . . . . . . . . . . . . . . . . 4 . . . . . . . . . . . Effects 2 | . . . . . . . . . . . . . . . . . . 2 . . . . . . . . . . . Energy Bleed 2 | . . . . . . . . . . . . . . . . . . 2 . . . . . . . . . . . Overflow Damage 589 | . . . 17 10 . 11 15 9 . 15 157 . . . 49 56 19 . . 7 . . 20 . . . . 197 7 Projectiles 151 | . . . 17 10 . . . . . . 23 . . . 49 28 . . . . . . . . . . . 17 7 Explosions 93 | . . . . . . 11 . 9 . 15 . . . . . . 19 . . . . . 20 . . . . 19 . Melee 345 | . . . . . . . 15 . . . 134 . . . . 28 . . . 7 . . . . . . . 161 . Knockbacks 35 | . 2 . 6 3 . . 18 . . . . . . . . . . . . . . . . . . . . 3 3 Impact 2 | . . . . . . . . . . . . . . . . . . . . . . . . . . . . 2 . Kinetic 29 | . 2 . 6 2 . . 15 . . . . . . . . . . . . . . . . . . . . 1 3 Secondary 4 | . . . . 1 . . 3 . . . . . . . . . . . . . . . . . . . . . . Self-Inflicted Damage 335 | . . . . 40 . . . . . 38 . . . . . . . 52 . 35 . . . . . . . 170 . Shots 13 | . . . . 1 . . . . . 1 . . . . . . . 1 . 1 . . . . . . . 9 . Rammed 14 | . . . . . . . 2 1 4 . 1 . . . . 2 . . . . 2 . 2 . . . . . . Targets Rammed 32 | . 1 . 3 2 . . 8 1 7 . 1 . . . . 3 . . . 1 2 . 2 . . . . . 1 Kicked 15 | . 1 . 3 2 . . 6 . 2 . . . . . . . . . . . . . . . . . . . 1 Crushed 3 | . . . . . . . . . 1 . . . . . . 1 . . . 1 . . . . . . . . . Highest Temperature 546 | . 150 . 13 12 . 224 413 204 17 154 . . . . . 193 51 276 . 546 . 316 241 . 389 129 282 409 394 Average Temperature 112 | . 45 . 4 7 . 88 120 98 9 57 . . . . . 63 18 174 . 198 . 90 110 . 176 24 83 170 124 Received Heat Transfer 5186 | . 186 . 228 6 . 135 774 225 377 44 144 . . . . 153 28 72 . 457 18 . 30 36 370 87 64 428 1324 Effects 14 | . . . . . . . 3 . . . . . . . . . . . . 5 . . . . 2 . . 2 2 Shutdowns 3 | . . . . . . . 1 . . . . . . . . . . . . 1 . . . . . . . 1 . Energy Bleed 3 | . . . . . . . 1 . . . . . . . . . . . . 1 . . . . . . . . 1 Interference 4 | . . . . . . . 1 . . . . . . . . . . . . . . . . . 2 . . . 1 Damage (minor) 4 | . . . . . . . . . . . . . . . . . . . . 3 . . . . . . . 1 . Siege Activations 5 | . . . . . . . . . . . . . . . . . . . . . . . . . 2 . 1 2 . Total Turns 108 | . . . . . . . . . . . . . . . . . . . . . . . . . 41 . 12 55 . Longest Duration 47 | . . . . . . . . . . . . . . . . . . . . . . . . . 37 . 12 47 . Robots Corrupted . | . . . . . . . . . . . . . . . . . . . . . . . . . . . . . . Combat Hostiles . | . . . . . . . . . . . . . . . . . . . . . . . . . . . . . . Parts Fried 2 | . . . . . . . . . . . 1 . . . . 1 . . . . . . . . . . . . . Impact Corruptions 16 | . . . . 1 . . 1 . . . 4 . . . . 1 . . . 1 . . . . . . . 8 . Robots Melted 16 | . . . . . . . . . . . 1 . . . . 1 1 . . . . 5 . . . . 1 1 6 Combat Hostiles 16 | . . . . . . . . . . . 1 . . . . 1 1 . . . . 5 . . . . 1 1 6 Parts Melted 93 | . . . 1 . . . . . . . 14 . . . 2 9 1 2 . 1 . 24 . . . 1 1 17 20 Heat Transferred 19001 | . . . . . . . . . . . 1776 . . . 481 2072 296 385 . 629 . 4000 50 . . 700 1050 3360 4202 Parts Sabotaged . | . . . . . . . . . . . . . . . . . . . . . . . . . . . . . . Parts Stolen . | . . . . . . . . . . . . . . . . . . . . . . . . . . . . . . Parts Stripped . | . . . . . . . . . . . . . . . . . . . . . . . . . . . . . . Power Chain Reactions 1 | . . . . . . . . . . . . . . . . . . . . . . . . . . . . 1 . Alert | -11 -10 -10 -9 -9 -9 -8 -8 -8 -8 -8 -7 -7 -7 -7 -6 -6 -6 -6 -6 -5 -5 -5 -5 -5 -5 -5 -4 -4 -4 ------- Run | Yrd Mat Min Mat Min Exi Min Mat Gar Mat Sto Fac Low Low Dat Pro Fac Low Low Zio Pro Fac Was Fac Upp Upp War Pro Fac Ext Peak Influence 1290 | . 218 123 221 207 . 138 302 1290 737 243 205 . . . . 275 . . . . 168 58 145 . . . . 208 963 Initial 628 | . . 73 47 23 . . 38 196 628 176 72 . . . . 18 . . . . 63 58 . . . . . . 25 Average 164 | . 114 122 110 78 . 61 96 837 500 144 70 . . . . 138 . . . . 41 22 63 . . . . 76 176 Maximum Alert Level 4 | . 1 . 1 1 . . 1 4 3 1 1 . . . . 1 . . . . . . . . . . . 1 3 Low Security (%) 80 | . 97 100 98 93 . 100 89 1 . 80 98 . . . . 58 . . . . 100 100 100 . . . . 98 78 Level 1 8 | . 2 . 1 6 . . 10 17 26 19 1 . . . . 41 . . . . . . . . . . . 1 6 Level 2 5 | . . . . . . . . 23 71 . . . . . . . . . . . . . . . . . . . 10 Level 3 2 | . . . . . . . . 21 2 . . . . . . . . . . . . . . . . . . . 5 Level 4 2 | . . . . . . . . 35 . . . . . . . . . . . . . . . . . . . . . Level 5 . | . . . . . . . . . . . . . . . . . . . . . . . . . . . . . . High Security . | . . . . . . . . . . . . . . . . . . . . . . . . . . . . . . Max Security . | . . . . . . . . . . . . . . . . . . . . . . . . . . . . . . Squads Dispatched 45 | . 2 . 3 . . . 6 . 1 2 9 . . . . 7 . . . . 3 . 2 . . . . 4 6 Investigation 11 | . 2 . 1 . . . 2 . 1 . . . . . . 1 . . . . 1 . 1 . . . . 1 1 Extermination 12 | . . . . . . . . . . . 3 . . . . 3 . . . . 2 . 1 . . . . 3 . Reinforcement 17 | . . . 2 . . . 2 . . 1 6 . . . . 3 . . . . . . . . . . . . 3 Assault 2 | . . . . . . . . . . . . . . . . . . . . . . . . . . . . . 2 Garrison 3 | . . . . . . . 2 . . 1 . . . . . . . . . . . . . . . . . . . Intercept . | . . . . . . . . . . . . . . . . . . . . . . . . . . . . . . Searches Triggered . | . . . . . . . . . . . . . . . . . . . . . . . . . . . . . . Data Miner Redirects 3 | . . . . . . . . . . . . . . . . . . . . . . . . . . . . . 3 Construction Impeded 4 | . . . . . . . . . . . . . . . . 2 . . . . . . . . . . . . 2 Haulers Reinforced 2 | . . . . . . . . . . . 1 . . . . 1 . . . . . . . . . . . . . Active Scanning Responses . | . . . . . . . . . . . . . . . . . . . . . . . . . . . . . . Cargo Convoy Interrupts 1 | . . . . . . . . . . . 1 . . . . . . . . . . . . . . . . . . Stealth | -11 -10 -10 -9 -9 -9 -8 -8 -8 -8 -8 -7 -7 -7 -7 -6 -6 -6 -6 -6 -5 -5 -5 -5 -5 -5 -5 -4 -4 -4 --------- Run | Yrd Mat Min Mat Min Exi Min Mat Gar Mat Sto Fac Low Low Dat Pro Fac Low Low Zio Pro Fac Was Fac Upp Upp War Pro Fac Ext Distress Signals 15 | . . . 2 . . . 2 1 3 1 . . . . . 1 . . . . . . . . . . . 1 4 Communications Jammed . | . . . . . . . . . . . . . . . . . . . . . . . . . . . . . . Distress Signals . | . . . . . . . . . . . . . . . . . . . . . . . . . . . . . . Times Spotted 369 | . 19 2 21 5 . 8 34 34 20 14 16 . . . 3 17 7 9 . 13 7 5 12 3 10 17 10 25 58 Peak Tracking Total 12 | . 5 1 4 4 . 3 6 8 6 4 3 . . . 1 4 3 6 . 5 2 2 5 3 4 8 4 10 12 Tactical Retreats 20 | . 3 . . . . . 2 3 2 . 1 . . . . . 1 3 . 1 . 1 . . . 1 . 1 1 Traps | -11 -10 -10 -9 -9 -9 -8 -8 -8 -8 -8 -7 -7 -7 -7 -6 -6 -6 -6 -6 -5 -5 -5 -5 -5 -5 -5 -4 -4 -4 ------- Run | Yrd Mat Min Mat Min Exi Min Mat Gar Mat Sto Fac Low Low Dat Pro Fac Low Low Zio Pro Fac Was Fac Upp Upp War Pro Fac Ext Traps Triggered 10 | . 1 . 1 . . . . 1 . . 2 . . . . . . . . . 2 . . . . . . . 3 Indirectly . | . . . . . . . . . . . . . . . . . . . . . . . . . . . . . . Trap Hack Attempts . | . . . . . . . . . . . . . . . . . . . . . . . . . . . . . . Triggered . | . . . . . . . . . . . . . . . . . . . . . . . . . . . . . . Disarmed . | . . . . . . . . . . . . . . . . . . . . . . . . . . . . . . Reprogrammed . | . . . . . . . . . . . . . . . . . . . . . . . . . . . . . . Reused . | . . . . . . . . . . . . . . . . . . . . . . . . . . . . . . Traps Extracted . | . . . . . . . . . . . . . . . . . . . . . . . . . . . . . . Installed . | . . . . . . . . . . . . . . . . . . . . . . . . . . . . . . Triggered 16 | . . . . . . . . . . . 2 . . . 2 . 1 . . . . . . . 1 9 . 1 . Machines | -11 -10 -10 -9 -9 -9 -8 -8 -8 -8 -8 -7 -7 -7 -7 -6 -6 -6 -6 -6 -5 -5 -5 -5 -5 -5 -5 -4 -4 -4 ---------- Run | Yrd Mat Min Mat Min Exi Min Mat Gar Mat Sto Fac Low Low Dat Pro Fac Low Low Zio Pro Fac Was Fac Upp Upp War Pro Fac Ext Machines Disabled 19 | . 1 . 1 2 . . . 8 . 1 . . . . . 1 . . . . 1 . 2 . . . . . 2 Max in Single Turn 1 | . 1 . 1 1 . . . 1 . 1 . . . . . 1 . . . . 1 . 1 . . . . . . Garrison Access 1 | . . . . . . . . . . . . . . . . . . . . . . . . . . . . 1 . Garrison Relay 7 | . . . . . . . . 7 . . . . . . . . . . . . . . . . . . . . . Energy Cycler 2 | . . . . . . . . . . . . . . . . . . . . . . . . . . . . . 2 Machines Repaired . | . . . . . . . . . . . . . . . . . . . . . . . . . . . . . . Machines Dismantled . | . . . . . . . . . . . . . . . . . . . . . . . . . . . . . . Machines Sabotaged . | . . . . . . . . . . . . . . . . . . . . . . . . . . . . . . Overloaded Fab Kills . | . . . . . . . . . . . . . . . . . . . . . . . . . . . . . . Hacking | -11 -10 -10 -9 -9 -9 -8 -8 -8 -8 -8 -7 -7 -7 -7 -6 -6 -6 -6 -6 -5 -5 -5 -5 -5 -5 -5 -4 -4 -4 --------- Run | Yrd Mat Min Mat Min Exi Min Mat Gar Mat Sto Fac Low Low Dat Pro Fac Low Low Zio Pro Fac Was Fac Upp Upp War Pro Fac Ext Machines Accessed 71 | . 5 . 6 1 1 . 6 2 3 5 4 . . 3 1 5 1 1 . . 4 . 6 1 1 5 . 5 5 Terminals 45 | . 3 . 6 . . . 3 2 3 4 3 . . . 1 4 1 . . . 2 . 4 . . . . 4 5 Fabricators 2 | . . . . . . . . . . . . . . . . . . . . . 1 . 1 . . . . . . Repair Stations 2 | . . . . . . . . . . . . . . . . . . . . . 1 . 1 . . . . . . Recycling Units 5 | . 2 . . . . . 2 . . . . . . . . 1 . . . . . . . . . . . . . Scanalyzers 1 | . . . . . . . . . . . 1 . . . . . . . . . . . . . . . . . . Garrison Access 3 | . . . . . . . 1 . . 1 . . . . . . . . . . . . . . . . . 1 . Total Hacks 204 | . 9 . 17 1 1 . 14 3 12 16 8 . . 24 1 14 1 1 . . 11 . 30 1 1 13 . 14 12 Successful 134 | . 6 . 9 1 1 . 9 2 7 7 3 . . 24 1 7 1 1 . . 7 . 19 1 1 13 . 7 7 Failed 70 | . 3 . 8 . . . 5 1 5 9 5 . . . . 7 . . . . 4 . 11 . . . . 7 5 Catastrophic 15 | . . . . . . . . . 2 1 1 . . . . 2 . . . . 3 . 2 . . . . 4 . Database Lockouts . | . . . . . . . . . . . . . . . . . . . . . . . . . . . . . . Manual 100 | . 8 . 15 . 1 . 10 . 9 12 6 . . . . 11 . . . . 4 . 10 . . 1 . 6 7 Terminals 131 | . 7 . 17 . . . 9 3 12 14 7 . . . 1 13 1 . . . 4 . 18 . . . . 13 12 Fabricators 5 | . . . . . . . . . . . . . . . . . . . . . 3 . 2 . . . . . . Repair Stations 14 | . . . . . . . . . . . . . . . . . . . . . 4 . 10 . . . . . . Recycling Units 5 | . 2 . . . . . 2 . . . . . . . . 1 . . . . . . . . . . . . . Scanalyzers 1 | . . . . . . . . . . . 1 . . . . . . . . . . . . . . . . . . Garrison Access 6 | . . . . . . . 3 . . 2 . . . . . . . . . . . . . . . . . 1 . Terminal Hacks 82 | . 2 . 4 1 1 . 3 2 4 4 1 . . 24 1 4 1 1 . . . . 6 1 1 13 . 5 3 Record 12 | . . . . . . . . . . . . . . 6 1 . 1 . . . . . . 1 . 2 . . 1 Part Schematic 12 | . . . . . . . . . . . . . . 11 . 1 . . . . . . . . . . . . . Robot Schematic 4 | . . . . . . . . . . . . . . 4 . . . . . . . . . . . . . . . Robot Analysis 3 | . 2 . 1 . . . . . . . . . . . . . . . . . . . . . . . . . . Prototype ID Bank 15 | . . . . . . . . . . . . . . 3 . 1 . . . . . . 1 . . 9 . . 1 Open Door 6 | . . . . 1 . . . . . . . . . . . . . 1 . . . . . . 1 2 . 1 . Branch Access Points 4 | . . . 1 . . . . . . . . . . . . 1 . . . . . . 1 . . . . 1 . Emergency Access Points 2 | . . . . . . . . . . . . . . . . . . . . . . . . . . . . 2 . Alert Level 6 | . . . . . . . 1 . 1 1 1 . . . . . . . . . . . 1 . . . . . 1 Unreport Threat 9 | . . . 1 . . . 2 . 3 3 . . . . . . . . . . . . . . . . . . . Locate Traps 2 | . . . . . . . . . . . . . . . . . . . . . . . 1 . . . . 1 . Recall Investigation 1 | . . . . . . . . . . . . . . . . . . . . . . . 1 . . . . . . Hauler Manifests 1 | . . . 1 . . . . . . . . . . . . . . . . . . . . . . . . . . Zone Layout 2 | . . . . . . . . . . . . . . . . 1 . . . . . . 1 . . . . . . Garrison Registry 1 | . . . . . . . . 1 . . . . . . . . . . . . . . . . . . . . . Patrol Navigation 1 | . . . . . . . . 1 . . . . . . . . . . . . . . . . . . . . . Derelict Proto ID Bank 1 | . . . . . 1 . . . . . . . . . . . . . . . . . . . . . . . . Fabricator Hacks 3 | . . . . . . . . . . . . . . . . . . . . . 2 . 1 . . . . . . Load Schematic 2 | . . . . . . . . . . . . . . . . . . . . . 1 . 1 . . . . . . Build 1 | . . . . . . . . . . . . . . . . . . . . . 1 . . . . . . . . Repair Station Hacks 14 | . . . . . . . . . . . . . . . . . . . . . 4 . 10 . . . . . . Scan Component 7 | . . . . . . . . . . . . . . . . . . . . . 2 . 5 . . . . . . Repair 7 | . . . . . . . . . . . . . . . . . . . . . 2 . 5 . . . . . . Recycling Unit Hacks . | . . . . . . . . . . . . . . . . . . . . . . . . . . . . . . Scanalyzer . | . . . . . . . . . . . . . . . . . . . . . . . . . . . . . . Garrison Access Hacks 2 | . . . . . . . 1 . . . . . . . . . . . . . . . . . . . . 1 . Unlock Access 1 | . . . . . . . 1 . . . . . . . . . . . . . . . . . . . . . . Seal Access 1 | . . . . . . . . . . . . . . . . . . . . . . . . . . . . 1 . Unauthorized Hacks 33 | . 4 . 5 . . . 5 . 3 3 2 . . . . 3 . . . . 1 . 2 . . . . 1 4 Terminals 27 | . 2 . 5 . . . 3 . 3 3 2 . . . . 2 . . . . 1 . 1 . . . . 1 4 Botnet 27 | . 2 . 5 . . . 3 . 3 3 2 . . . . 2 . . . . 1 . 1 . . . . 1 4 Fabricators 1 | . . . . . . . . . . . . . . . . . . . . . . . 1 . . . . . . Recompile 1 | . . . . . . . . . . . . . . . . . . . . . . . 1 . . . . . . Repair Stations . | . . . . . . . . . . . . . . . . . . . . . . . . . . . . . . Recycling Units 5 | . 2 . . . . . 2 . . . . . . . . 1 . . . . . . . . . . . . . Tunnel 5 | . 2 . . . . . 2 . . . . . . . . 1 . . . . . . . . . . . . . Scanalyzers . | . . . . . . . . . . . . . . . . . . . . . . . . . . . . . . Garrison Access . | . . . . . . . . . . . . . . . . . . . . . . . . . . . . . . Data Cores Recovered 3 | . . . . . . . . . . 1 . . . . . 1 . . . . . . . . . . . 1 . Used 1 | . . . . . . . . . . . . . . . . . . . . . . . . . . . . 1 . Hacking Detections 40 | . 2 . 2 . . . 3 2 3 5 3 . . . . 4 . . . . 4 . 4 . . . . 4 4 Full Trace Events 5 | . . . . . . . . . 2 1 . . . . . . . . . . 1 . . . . . . 1 . Feedback Events . | . . . . . . . . . . . . . . . . . . . . . . . . . . . . . . Feedback Blocked . | . . . . . . . . . . . . . . . . . . . . . . . . . . . . . . Robot Schematics Acquired 6 | . . . . . . . . . . . . . . 4 . . . . 2 . . . . . . . . . . Robots Built . | . . . . . . . . . . . . . . . . . . . . . . . . . . . . . . Authchips . | . . . . . . . . . . . . . . . . . . . . . . . . . . . . . . Time . | . . . . . . . . . . . . . . . . . . . . . . . . . . . . . . Total Robot Build Rating . | . . . . . . . . . . . . . . . . . . . . . . . . . . . . . . Part Schematics Acquired 27 | . . . . . . . . . . . . . . 11 . 1 . . 15 . . . . . . . . . . Parts Built 1 | . . . . . . . . . . . . . . . . . . . . . 1 . . . . . . . . Authchips . | . . . . . . . . . . . . . . . . . . . . . . . . . . . . . . Time 47 | . . . . . . . . . . . . . . . . . . . . . 47 . . . . . . . . Total Part Build Rating 5 | . . . . . . . . . . . . . . . . . . . . . 5 . . . . . . . . Parts Repaired 6 | . . . . . . . . . . . . . . . . . . . . . 2 . 4 . . . . . . Time 328 | . . . . . . . . . . . . . . . . . . . . . 52 . 276 . . . . . . Parts Recycled . | . . . . . . . . . . . . . . . . . . . . . . . . . . . . . . Recycled Matter . | . . . . . . . . . . . . . . . . . . . . . . . . . . . . . . Retrieved Matter . | . . . . . . . . . . . . . . . . . . . . . . . . . . . . . . Retrieved Components . | . . . . . . . . . . . . . . . . . . . . . . . . . . . . . . Parts Scanalyzed . | . . . . . . . . . . . . . . . . . . . . . . . . . . . . . . Part Schematics Acquired . | . . . . . . . . . . . . . . . . . . . . . . . . . . . . . . Parts Damaged . | . . . . . . . . . . . . . . . . . . . . . . . . . . . . . . Bothacking | -11 -10 -10 -9 -9 -9 -8 -8 -8 -8 -8 -7 -7 -7 -7 -6 -6 -6 -6 -6 -5 -5 -5 -5 -5 -5 -5 -4 -4 -4 ------------ Run | Yrd Mat Min Mat Min Exi Min Mat Gar Mat Sto Fac Low Low Dat Pro Fac Low Low Zio Pro Fac Was Fac Upp Upp War Pro Fac Ext Used RIF Installer . | . . . . . . . . . . . . . . . . . . . . . . . . . . . . . . Robots Hacked . | . . . . . . . . . . . . . . . . . . . . . . . . . . . . . . Non-combat . | . . . . . . . . . . . . . . . . . . . . . . . . . . . . . . Combat . | . . . . . . . . . . . . . . . . . . . . . . . . . . . . . . Robot Hacks Applied . | . . . . . . . . . . . . . . . . . . . . . . . . . . . . . . Relay Couplers Released 30 | . . . . . . . . 30 . . . . . . . . . . . . . . . . . . . . . Machine Destruction 30 | . . . . . . . . 30 . . . . . . . . . . . . . . . . . . . . . Fabnet Peak Effective % . | . . . . . . . . . . . . . . . . . . . . . . . . . . . . . . Robots Rewired 24 | . . . . . . . . 4 . . . . . . . . . 2 . . . . . . . . . . 18 Allies Hacked 1 | . . . . . . . . . . . . . . . . . . . . . . . . . . . . . 1 Hacks Repelled . | . . . . . . . . . . . . . . . . . . . . . . . . . . . . . . Allies | -11 -10 -10 -9 -9 -9 -8 -8 -8 -8 -8 -7 -7 -7 -7 -6 -6 -6 -6 -6 -5 -5 -5 -5 -5 -5 -5 -4 -4 -4 -------- Run | Yrd Mat Min Mat Min Exi Min Mat Gar Mat Sto Fac Low Low Dat Pro Fac Low Low Zio Pro Fac Was Fac Upp Upp War Pro Fac Ext Total Allies 32 | . . . . . . . . 4 . . . . . . . . . 2 . . . . . . . . . . 26 Largest Group 19 | . . . . . . . . 4 1 . . . . . . . . 2 2 2 . . . . . . . . 19 Highest-Rated Group 897 | . . . . . . . . 84 21 . . . . . . . . 40 40 40 . . . . . . . . 897 Highest-Rated Ally 159 | . . . . . . . . 21 21 . . . . . . . . 20 20 20 . . . . . . . . 159 Total Orders . | . . . . . . . . . . . . . . . . . . . . . . . . . . . . . . Ally Attacks 211 | . . . . . . . . 11 10 . . . . . . . . . . 15 . . . . . . . . 175 Total Damage 8003 | . . . . . . . . 268 228 . . . . . . . . . . 430 . . . . . . . . 7077 Kills 39 | . . . . . . . . 2 2 . . . . . . . . . . 2 . . . . . . . . 33 Allies Corrupted 1 | . . . . . . . . . . . . . . . . . . . . . . . . . . . . . 1 Allies Melted . | . . . . . . . . . . . . . . . . . . . . . . . . . . . . . . Intel | -11 -10 -10 -9 -9 -9 -8 -8 -8 -8 -8 -7 -7 -7 -7 -6 -6 -6 -6 -6 -5 -5 -5 -5 -5 -5 -5 -4 -4 -4 ------- Run | Yrd Mat Min Mat Min Exi Min Mat Gar Mat Sto Fac Low Low Dat Pro Fac Low Low Zio Pro Fac Was Fac Upp Upp War Pro Fac Ext Robot Analysis Total 3 | . 2 . 1 . . . . . . . . . . . . . . . . . . . . . . . . . . Derelict Logs Recovered 6 | . . . . 1 . . . . . . . 1 1 . . . . 1 . 1 . . . 1 . . . . . Drone Launches . | . . . . . . . . . . . . . . . . . . . . . . . . . . . . . . Drone Recoveries . | . . . . . . . . . . . . . . . . . . . . . . . . . . . . . . Exploration | -11 -10 -10 -9 -9 -9 -8 -8 -8 -8 -8 -7 -7 -7 -7 -6 -6 -6 -6 -6 -5 -5 -5 -5 -5 -5 -5 -4 -4 -4 ------------- Run | Yrd Mat Min Mat Min Exi Min Mat Gar Mat Sto Fac Low Low Dat Pro Fac Low Low Zio Pro Fac Was Fac Upp Upp War Pro Fac Ext Turns Passed 26297 | . 714 263 1275 584 508 754 1353 1115 765 939 1361 627 901 130 796 1165 570 714 1249 967 1125 1007 923 570 470 1150 582 1654 2066 Spaces Moved 11776 | 1 351 98 551 291 264 365 576 475 330 318 488 260 396 82 331 586 303 399 758 442 418 410 343 325 228 655 267 706 759 Core 14 | . . . . . . . . . . . . . . . . . . . . . . . . . . . . 14 . Treads 7481 | . . . . . . . 215 210 130 . 469 260 396 82 331 586 303 399 758 442 418 410 343 325 228 655 267 253 1 Legs 3551 | 1 351 98 551 291 264 365 361 265 200 318 19 . . . . . . . . . . . . . . . . 28 439 Wheels 541 | . . . . . . . . . . . . . . . . . . . . . . . . . . . . 411 130 Hover 189 | . . . . . . . . . . . . . . . . . . . . . . . . . . . . . 189 Flight . | . . . . . . . . . . . . . . . . . . . . . . . . . . . . . . Fastest Speed 50 | 120 120 260 190 190 190 190 120 120 155 190 240 240 160 160 160 160 161 161 161 161 161 160 160 160 160 160 165 50 150 Average Speed 184 | 120 173 260 190 190 190 190 158 165 176 256 241 240 224 160 229 160 161 161 161 176 161 219 160 160 160 160 165 158 216 Slowest Speed 560 | 120 260 260 190 190 190 190 330 330 190 260 480 240 240 160 240 240 242 161 161 244 161 244 160 160 160 165 165 290 560 Overloaded Moves . | . . . . . . . . . . . . . . . . . . . . . . . . . . . . . . Propulsion Burnouts . | . . . . . . . . . . . . . . . . . . . . . . . . . . . . . . Robots Hopped . | . . . . . . . . . . . . . . . . . . . . . . . . . . . . . . Cave-ins Triggered 1 | . . . . . . . . . . . . . . . . . . . . . . . . . . . . 1 . Exploration Rate (%) 48 | 2 55 30 44 62 69 86 45 49 24 54 7 53 52 70 48 14 52 59 79 70 11 87 10 57 43 83 45 11 77 Regions Visited 29 Branch Regions 18 Pre-discovered Areas 10 | . 2 . . 1 . . 2 . . . . 1 . 1 . 1 . . 2 . . . . . . . . . . Known Exits Taken 15 | . . . 1 . . . 1 . . . 1 1 1 1 1 1 1 1 1 1 . . 1 1 . . . 1 . Unknown Exits Taken 11 | 1 1 1 . 1 1 1 . . 1 1 . . . . . . . . . . . . . . 1 1 1 . . Scrap Searched 22 | . . 1 . . . . . . . . . 3 3 . 2 . 2 3 4 3 . . . 1 . . . . . Spaces Dug 67 | . . . . . . . 1 . 12 . . . 1 . . 6 3 . 1 3 2 . 4 . . 6 10 18 . Terrain Destroyed 568 | . . . 7 14 . 52 8 58 23 13 13 . 1 . 16 15 31 60 1 86 3 . 19 . 12 17 23 65 31 Melee 20 | . . . . . . . . . . . . . 1 . . 2 . . 1 . 2 . . . . . . 14 . Projectile 171 | . . . 7 1 . 4 8 . 1 . 13 . . . . 13 6 2 . 11 1 . 9 . . 17 23 28 27 AOE 377 | . . . . 13 . 48 . 58 22 13 . . . . 16 . 25 58 . 75 . . 10 . 12 . . 23 4 Terrain Rammed . | . . . . . . . . . . . . . . . . . . . . . . . . . . . . . . Walls Destroyed . | . . . . . . . . . . . . . . . . . . . . . . . . . . . . . . Machines Disabled . | . . . . . . . . . . . . . . . . . . . . . . . . . . . . . . Actions | -11 -10 -10 -9 -9 -9 -8 -8 -8 -8 -8 -7 -7 -7 -7 -6 -6 -6 -6 -6 -5 -5 -5 -5 -5 -5 -5 -4 -4 -4 --------- Run | Yrd Mat Min Mat Min Exi Min Mat Gar Mat Sto Fac Low Low Dat Pro Fac Low Low Zio Pro Fac Was Fac Upp Upp War Pro Fac Ext Total 15115 | . 419 101 708 308 272 409 864 661 430 397 602 266 404 81 354 735 348 451 782 570 838 510 678 352 286 721 370 1109 1089 Wait 1702 | . 30 . 77 . . 25 139 38 26 46 41 1 3 . 6 75 21 2 5 73 370 65 285 7 18 8 77 222 42 Move 11749 | . 350 97 550 290 263 364 576 474 329 317 487 259 395 81 330 585 302 398 757 441 418 409 342 324 227 654 266 705 759 Hop . | . . . . . . . . . . . . . . . . . . . . . . . . . . . . . . Pick Up 165 | . 7 1 14 3 2 1 11 9 3 5 9 2 . . 2 7 1 4 . 3 8 5 6 2 2 5 . 30 23 Fast Attach 117 | . 4 . 4 . . . 8 1 1 2 11 . 2 . . 4 1 . 8 1 3 3 6 . 3 10 . 28 17 Attach 85 | . 1 . 3 . 1 . 10 7 7 . 1 . 1 . . 3 1 1 . 5 5 3 . . 4 1 . 12 19 Detach 10 | . 1 . . . . . 2 . . . . . . . . . . . . . 2 . . . . 1 . 1 3 Swap 162 | . 1 . 5 1 2 3 9 10 8 3 4 1 1 . 7 13 5 3 2 10 11 1 10 6 8 10 7 8 13 Drop 197 | . 4 . 11 4 4 3 16 5 5 . 15 3 1 . 2 12 1 2 8 4 5 14 6 3 3 17 . 14 35 Fire 676 | . 20 3 41 8 . 13 85 95 44 24 25 . . . 7 29 16 14 . 32 12 10 21 10 21 11 20 64 51 Melee 46 | . . . . . . . . . . . 8 . 1 . . 4 . . 2 . 2 . . . . 4 . 25 . Ram . | . . . . . . . . . . . . . . . . . . . . . . . . . . . . . . Kick 15 | . 1 . 3 2 . . 6 . 2 . . . . . . . . . . . . . . . . . . . 1 Crush 17 | . . . . . . . 2 1 5 . 1 . . . . 3 . . . 1 2 . 2 . . . . . . Escape Stasis 16 | . . . . . . . . . . . . . . . . . . . . . . . . . . . . . 16 Rewire 158 | . . . . . . . . 21 . . . . . . . . . 27 . . . . . . . . . . 110 Trap . | . . . . . . . . . . . . . . . . . . . . . . . . . . . . . . Miscellaneous . | . . . . . . . . . . . . . . . . . . . . . . . . . . . . . . Route ------- -11/Scrapyard -10/Materials (discovered 3 exits: *Mat / [*Min x2]) -10/Mines -9/Materials (discovered 4 exits: *Mat x2 / *Min x2) -9/Mines (discovered 2 exits: *Mat / *Exi) -9/Exiles (discovered 2 exits: [*Min x2]) -8/Mines -8/Materials (discovered 2 exits: *Sto / Gar) -8/Garrison (discovered 3 exits: *Mat x3) -8/Materials -8/Storage -7/Factory -7/Lower Caves -7/Lower Caves (discovered 2 exits: *Fac / *Dat) -7/Data Miner -6/Proximity Caves -6/Factory (discovered 4 exits: *Fac x2 / *Low x2) -6/Lower Caves -6/Lower Caves (discovered 2 exits: *Fac / *Zio) -6/Zion -5/Proximity Caves -5/Factory -5/Waste -5/Factory (discovered 2 exits: *Upp x2) -5/Upper Caves -5/Upper Caves -5/Warlord -4/Proximity Caves -4/Factory (discovered 7 exits: *Res x2 / Upp x2 / *Ext x2 / Arm) -4/Extension History --------- Turn | Location | Event 1 | -11/Scrapyard | Discovered new exit (range 0) 1 | -11/Scrapyard | Entered Materials 13 | -10/Materials | Discovered new exit (range 12) 234 | -10/Materials | Discovered new exit (range 14) 303 | -10/Materials | Build established: Mutant 392 | -10/Materials | Discovered new exit (range 16) 715 | -10/Materials | Entered Mines 962 | -10/Mines | Discovered new exit (range 5) 978 | -10/Mines | Entered Materials 978 | -9/Materials | Evolved 2 slots: Propulsion x1, Utility x1 1145 | -9/Materials | Discovered new exit (range 10) 1328 | -9/Materials | Discovered new exit (range 5) 1774 | -9/Materials | Identified exit to Mines 1864 | -9/Materials | Discovered new exit (range 9) 2253 | -9/Materials | Entered Mines 2321 | -9/Mines | Found the Drone Emporium 2330 | -9/Mines | Found Prototype Device 2403 | -9/Mines | Discovered new exit (range 11) 2450 | -9/Mines | Received a Rocket Launcher from a helpful Derelict 2577 | -9/Mines | Build established: Scavenger-Mutant 2828 | -9/Mines | Deemed a non-threat by the Exiles lab entrance 2830 | -9/Mines | Discovered new exit (range 5) 2837 | -9/Mines | Entered Exiles 2866 | -9/Exiles | Discovered new exit (range 15) 2885 | -9/Exiles | Met 8R-AWN 2917 | -9/Exiles | Met EX-HEX 2967 | -9/Exiles | Met EX-BIN 2989 | -9/Exiles | Aligned with FarCom system 2991 | -9/Exiles | Given EX-Vault access code 3035 | -9/Exiles | Opened EX-Vault 3048 | -9/Exiles | Identified Splice Drone Bay 3057 | -9/Exiles | Found Firepult 3098 | -9/Exiles | Warned to stay clear of 0b10 Research branches 3151 | -9/Exiles | Met EX-DEC 3328 | -9/Exiles | Discovered new exit (range 10) 3345 | -9/Exiles | Left Exiles lab with Firepult 3345 | -9/Exiles | Entered Mines 3639 | -8/Mines | Build established: Mutant 4080 | -8/Mines | Discovered new exit (range 9) 4099 | -8/Mines | Entered Materials 4099 | -8/Materials | Evolved 2 slots: Propulsion x1, Utility x1 4421 | -8/Materials | Build established: Scavenger-Mutant 4657 | -8/Materials | Lost 3 parts (2n1w) 4927 | -8/Materials | Build established: Mutant 5235 | -8/Materials | Garrison activated, responded to threat 5238 | -8/Materials | Discovered new exit (range 13) 5390 | -8/Materials | Garrison activated, responded to threat 5452 | -8/Materials | Identified exit to Garrison 5452 | -8/Materials | Entered Garrison 5549 | -8/Garrison | Discovered new exit (range 33) 5549 | -8/Garrison | Discovered new exit (range 49) 5549 | -8/Garrison | Discovered new exit (range 55) 5712 | -8/Garrison | Garrison Relay disabled 5717 | -8/Garrison | Garrison Relay disabled 5720 | -8/Garrison | Garrison Relay disabled 5723 | -8/Garrison | Garrison Relay disabled 5782 | -8/Garrison | Triggered checkpoint 5827 | -8/Garrison | Garrison Relay disabled 5924 | -8/Garrison | Triggered checkpoint 6152 | -8/Garrison | Triggered checkpoint 6158 | -8/Garrison | Core integrity fell below 50% 6192 | -8/Garrison | Destroyed 7 combat bots 6232 | -8/Garrison | Triggered checkpoint 6261 | -8/Garrison | Garrison Relay disabled 6356 | -8/Garrison | Triggered checkpoint 6394 | -8/Garrison | Garrison Relay disabled 6468 | -8/Garrison | Triggered checkpoint 6509 | -8/Garrison | Lost 3 allies 6567 | -8/Garrison | Entered Materials 6567 | -8/Materials | Accompanied by 1 ally 6932 | -8/Materials | Discovered new exit (range 7) 7060 | -8/Materials | Build established: Scavenger-Mutant 7332 | -8/Materials | Entered Storage 7736 | -8/Storage | Core integrity fell below 20% 7829 | -8/Storage | Garrison activated, responded to threat 8258 | -8/Storage | Discovered new exit (range 5) 8271 | -8/Storage | Entered Factory 8271 | -7/Factory | Evolved 2 slots: Utility x1, Weapon x1 8490 | -7/Factory | Discovered new exit (range 10) 8562 | -7/Factory | Identified exit to Lower Caves 8645 | -7/Factory | Build established: Mutant 9021 | -7/Factory | Cargo convoy interrupted 9104 | -7/Factory | Build established: Skirmisher 9632 | -7/Factory | Entered Lower Caves 9658 | -7/Lower Caves | Met a Warlord Commander 9659 | -7/Lower Caves | Learned location of Warlord (-5) 9660 | -7/Lower Caves | Warlord Commander delivered Encrypted Comm Array 10045 | -7/Lower Caves | Spotted B-75 Beast 10177 | -7/Lower Caves | Learned Factory emergency access door positions 10242 | -7/Lower Caves | Discovered new exit (range 8) 10256 | -7/Lower Caves | Identified exit to Lower Caves 10259 | -7/Lower Caves | Entered another Lower Caves area 10326 | -7/Lower Caves | Discovered new exit (range 11) 10867 | -7/Lower Caves | Learned Factory stockpile data 11030 | -7/Lower Caves | Found Alien Artifact 11030 | -7/Lower Caves | Identified Core Expander 11030 | -7/Lower Caves | Installed Core Expander, added new Propulsion slot 11112 | -7/Lower Caves | Discovered new exit (range 7) 11120 | -7/Lower Caves | Identified exit to Data Miner 11160 | -7/Lower Caves | Entered Data Miner 11160 | -7/Data Miner | Discovered new exit (range 6) 11191 | -7/Data Miner | Met Data Miner 11231 | -7/Data Miner | Learned location of Section 7 (-2) 11231 | -7/Data Miner | Acquired the access code to Warlord's prototype stash 11245 | -7/Data Miner | Received God Mode back door access code from Data Miner 11287 | -7/Data Miner | Identified exit to Proximity Caves 11290 | -7/Data Miner | Entered Proximity Caves 12060 | -6/Proximity Caves | Discovered new exit (range 12) 12084 | -6/Proximity Caves | Identified exit to Factory 12086 | -6/Proximity Caves | Entered Factory 12086 | -6/Factory | Evolved 2 slots: Propulsion x1, Utility x1 12299 | -6/Factory | Discovered new exit (range 9) 12513 | -6/Factory | Identified exit to Lower Caves 12739 | -6/Factory | Discovered new exit (range 11) 12783 | -6/Factory | Identified exit to Factory 12932 | -6/Factory | Build established: Scavenger-Skirmisher 13251 | -6/Factory | Entered Lower Caves 13539 | -6/Lower Caves | Build established: Skirmisher 13805 | -6/Lower Caves | Discovered new exit (range 10) 13819 | -6/Lower Caves | Identified exit to Lower Caves 13821 | -6/Lower Caves | Entered another Lower Caves area 13861 | -6/Lower Caves | Discovered exit to Factory (range 8) 13970 | -6/Lower Caves | Build established: Scavenger-Skirmisher 14123 | -6/Lower Caves | Attacked by a faux Warlord 14497 | -6/Lower Caves | Discovered new exit (range 5) 14498 | -6/Lower Caves | Encountered a Warlord checkpoint 14503 | -6/Lower Caves | Identified exit to Zion 14520 | -6/Lower Caves | Learned Factory emergency access door positions 14535 | -6/Lower Caves | Entered Zion 14535 | -6/Zion | Accompanied by 2 allies 14627 | -6/Zion | System corruption cleaned by Quarantine Array 14829 | -6/Zion | Discovered new exit (range 13) 14989 | -6/Zion | Found Prototype Device 14989 | -6/Zion | Identified Bomb Factory No. 2 15074 | -6/Zion | Build established: Scavenger-Mutant 15161 | -6/Zion | Received a hallucinogenic algorithm 15585 | -6/Zion | Found Prototype Special Weapon 15585 | -6/Zion | Identified RU-N14's Throwing Claymores 15776 | -6/Zion | Identified exit to Proximity Caves 15784 | -6/Zion | Entered Proximity Caves 15784 | -5/Proximity Caves | Accompanied by 2 allies 16216 | -5/Proximity Caves | Learned Factory garrison access intel 16277 | -5/Proximity Caves | Build established: Scavenger-Skirmisher 16347 | -5/Proximity Caves | Spotted B-75 Beast 16394 | -5/Proximity Caves | Destroyed B-75 Beast 16421 | -5/Proximity Caves | Lost 3 parts (1p2u) 16671 | -5/Proximity Caves | Discovered exit to Factory (range 12) 16751 | -5/Proximity Caves | Entered Factory 16751 | -5/Factory | Evolved 2 slots: Utility x2 16753 | -5/Factory | Loaded intel: 4 garrison access locations 16937 | -5/Factory | Fabricated Imp. Hacking Suite? 17601 | -5/Factory | Repaired Lgt. Treads 17629 | -5/Factory | Repaired Lgt. Treads 17876 | -5/Factory | Sucked down chute 17876 | -5/Factory | Entered Waste 17929 | -5/Waste | Spotted C-40 Crusher 17949 | -5/Waste | Spotted C-40 Crusher 17950 | -5/Waste | Destroyed C-40 Crusher 17968 | -5/Waste | Destroyed C-40 Crusher 18022 | -5/Waste | Spotted C-40 Crusher 18025 | -5/Waste | Destroyed C-40 Crusher 18032 | -5/Waste | Spotted C-40 Crusher 18034 | -5/Waste | Spotted C-40 Crusher 18040 | -5/Waste | Destroyed C-40 Crusher 18109 | -5/Waste | Destroyed C-40 Crusher 18116 | -5/Waste | Spotted C-40 Crusher 18128 | -5/Waste | Destroyed C-40 Crusher 18392 | -5/Waste | Discovered new exit (range 15) 18800 | -5/Waste | Found Damper Plating 18881 | -5/Waste | Identified exit to Factory 18883 | -5/Waste | Entered Factory 19072 | -5/Factory | Identified exit to Upper Caves 19290 | -5/Factory | Repaired Spk. Medium Treads 19348 | -5/Factory | Repaired Hvy. Treads 19369 | -5/Factory | Build established: Hacker-Skirmisher 19387 | -5/Factory | Repaired Missile Launcher 19450 | -5/Factory | Repaired Antimatter Reactor 19806 | -5/Factory | Entered Upper Caves 19930 | -5/Upper Caves | Learned location of 1 exit from Factory 20010 | -5/Upper Caves | Attracted the attention of an 0b10 checkpoint 20365 | -5/Upper Caves | Discovered new exit (range 5) 20373 | -5/Upper Caves | Identified exit to Upper Caves 20376 | -5/Upper Caves | Entered another Upper Caves area 20391 | -5/Upper Caves | System corruption reached 10% 20421 | -5/Upper Caves | Lost 3 parts (3u) 20674 | -5/Upper Caves | Build established: Hacker-Tank 20825 | -5/Upper Caves | Discovered new exit (range 15) 20846 | -5/Upper Caves | Entered Warlord 20902 | -5/Warlord | System corruption cleaned by Quarantine Array 21226 | -5/Warlord | Build established: Hacker-Mutant 21375 | -5/Warlord | Met Warlord 21389 | -5/Warlord | Opened Warlord's prototype stash 21400 | -5/Warlord | Warlord's base attacked by MAIN.C 21400 | -5/Warlord | Found Prototype Device 21400 | -5/Warlord | Identified System Purifier 21408 | -5/Warlord | Found Prototype Hackware 21408 | -5/Warlord | Identified Ghost Barrier 21417 | -5/Warlord | Found Prototype Device 21417 | -5/Warlord | Identified Exp. Cloaking Device 21444 | -5/Warlord | Found Prototype Reactor 21596 | -5/Warlord | Found Prototype Launcher 21596 | -5/Warlord | Identified Vortex Catalyst Activator 21627 | -5/Warlord | Found Prototype Energy Gun 21627 | -5/Warlord | Identified Vortex Rifle 21750 | -5/Warlord | Warlord forces counterattacked 21824 | -5/Warlord | Lost 5 allies 21914 | -5/Warlord | Opened side exit 21985 | -5/Warlord | Discovered new exit (range 8) 21996 | -5/Warlord | Entered Proximity Caves 22040 | -4/Proximity Caves | Build established: Hacker-Tank 22500 | -4/Proximity Caves | Discovered new exit (range 13) 22578 | -4/Proximity Caves | Entered Factory 22578 | -4/Factory | Evolved 2 slots: Power x1, Utility x1 22579 | -4/Factory | Identified exit to Research 22889 | -4/Factory | Build established: Hacker-Skirmisher 23014 | -4/Factory | Identified exit to Upper Caves 23014 | -4/Factory | Identified exit to Extension 23014 | -4/Factory | Identified exit to Armory 23232 | -4/Factory | Destroyed 7 combat bots 23242 | -4/Factory | Lost 11 parts (1p4n3u3w) 23347 | -4/Factory | Lost 8 parts (2p2n2u2w) 23347 | -4/Factory | Core integrity fell below 50% 23813 | -4/Factory | Discovered exit to Research (range 10) 24096 | -4/Factory | Crushed by falling debris 24096 | -4/Factory | System corruption reached 10% 24127 | -4/Factory | Lost 3 parts (3u) 24232 | -4/Factory | Entered Extension 24533 | -4/Extension | Build established: Scavenger-Gunner 24678 | -4/Extension | Lost 5 parts (1p2n2w) 24951 | -4/Extension | Rescued a captive Derelict 25054 | -4/Extension | Rescued a captive Derelict 25055 | -4/Extension | Rescued a captive Derelict 25402 | -4/Extension | Rescued a captive Derelict 25403 | -4/Extension | Rescued a captive Derelict 25430 | -4/Extension | Rescued a captive Derelict 25631 | -4/Extension | Spotted B-86 Titan 25650 | -4/Extension | Spotted B-86 Titan 25654 | -4/Extension | Allies destroyed B-86 Titan 25670 | -4/Extension | Allies destroyed B-86 Titan 25699 | -4/Extension | Lost 4 allies 25907 | -4/Extension | Rescued A7 26134 | -4/Extension | Rescued a captive Derelict 26215 | -4/Extension | Incoming investigation squad redirected 26232 | -4/Extension | First assault squad dispatched 26250 | -4/Extension | Energy Cycler disabled 26251 | -4/Extension | Incoming assault squad redirected 26278 | -4/Extension | Incoming assault squad redirected 26284 | -4/Extension | Core integrity fell below 20% 26298 | -4/Extension | Self-destructed Last Messages --------------- 26291_ G-67 Veteran critical meltdown. 26291_ Adv. Heat Sink melted. 26291_ Flexi-carbon Leg melted. 26291_ G-67 Veteran heat short circuits Field Laser. 26291_ I-47 Archangel heat damages core (-19). 26291_ Com. Wheel melted. 26291_ Energy Well melted. 26291_ Com. Wheel melted. 26291_ Antimatter Reactor melted. 26291_ P-70 Sage fails to hack AB-1KG(b). 26291_ Imp. Medium Armor Plating destroyed. 26293_ AB-1KG(b) heat damages Power Maul. 26295_ X-77 Beamer suffers critical hit (Destroy). 26295_ Destroyed Adv. VSS Leg. 26295_ X-77 Beamer knocked back. 26295_ X-77 Beamer destroyed. 26296_ A7 system terminally corrupted. 26296_ A7: "I've done al##MISSION::FAILED##" 26296_ The unstable cave ceiling collapses. 26296_ Flexi-carbon Leg destroyed. Map ----- +----------------------------------------------------+ | | | | | | | | | | | | | | | | | | | | | | | | | | | | | | | | | | | | | | | | | ####???????????????????????????????? | | #??????????????????###?###??????? | | # #???????????????## # ##?????? | | %[################### ###???? | | [%= %[ #???? | | % #?????? @ #????? | | = #?????? %!*=[ #????? | | #?????? /=%! #??? | | ####?????? % ! #??? | | #######???# = % = ; #?? | | #???? # %% ! ##?? | | ###### # d% [ #??? | | / = g !% ??? | | =! !###### # =%!% ?? | | =! ! #?????? # [%% % ## ? | | ! #?????? =bp%% %%= #??# | | #######??????? =[! ??? | | ?????????????? %=% #?? | | ?????????????? % ??? | | ?????????????###########; ##???? | | ????????????????????????# # ?????? | | ??????????????????????????? ???????? | | ???????????????????????????????????? | | ???????????????????????????????????? | | ???????????????????????????????????? | | ???????????????????????????????????? | | ???????????????????????????????????? | | ???????????????????????????????????? | | ???????????????????????????????????? | | ???????????????????????????????????? | +----------------------------------------------------+ Best States ------------- Heat Dissipation 109 Energy Generation 37 Energy Capacity 725 Matter Stores 300 Matter Capacity 300 Sight Range 16 Robot Scan Range 15 Terrain Scan Range 20 Terrain Scan Density 210 Jamming Range 16 Cloak Strength 4 Base Temperature (-) 200 Armor Coverage 825 Resistance: KI 30 Evasion (%) 55 Targeting Accuracy 24 Core Analysis 6 Recoil Reduction 6 Offensive Hacking 22 Defensive Hacking 31 Authchip Count 1 Item Schematics ----------------- Combat Drone Bay | -7/Data Miner | Free Lgt. Regenerative Plating | -7/Data Miner | Free Cld. Aerolev Unit | -7/Data Miner | Free Exp. Targeting Computer | -7/Data Miner | Free Com. Ion Cannon | -7/Data Miner | Free Antigrav System | -7/Data Miner | Free Imp. Kinecellerator | -7/Data Miner | Free Hvy. Shock Bomb Launcher | -7/Data Miner | Free Imp. Actuator Array | -7/Data Miner | Free Imp. Thermal Shield | -7/Data Miner | Free Adv. Drone Bay | -7/Data Miner | Free Imp. Hacking Suite | -6/Factory | Hacked Imp. Coolant Injector | -6/Zion | Archive Magnetic Acceleration Cannon | -6/Zion | Archive Fusion Compressor | -6/Zion | Archive Adv. Plasma Cannon | -6/Zion | Archive Hvy. Gauss Cannon | -6/Zion | Archive Remote Force Field | -6/Zion | Archive Adv. Signal Interpreter | -6/Zion | Archive Wave Gun | -6/Zion | Archive Imp. Cryofiber Web | -6/Zion | Archive Tesla Rifle | -6/Zion | Archive Imp. Reaction Control System | -6/Zion | Archive Field Propulsion Drive | -6/Zion | Archive Imp. Core Shielding | -6/Zion | Archive Adv. Thermal Shield | -6/Zion | Archive Tiamat Missile Launcher | -6/Zion | Archive Robot Schematics ------------------ S-27 Virus | -7/Data Miner | Free G-47 Trooper | -7/Data Miner | Free W-25 Informer | -7/Data Miner | Free G-50 Soldier | -7/Data Miner | Free H-66 Slayer | -6/Zion | Archive A-02 Transporter | -6/Zion | Archive Fabricated ------------ Imp. Hacking Suite | x1 | -5/Factory Alien Tech Used ----------------- Core Expander Achievements -------------- None Challenges ------------ None Game ------ Seed DimensionalInsulatedWeb Manual? 0 Play Time 02:30:25 Cumulative 183.7 hours Start 2024.04.06 @ 14:58:20 End 2024.04.06 @ 19:59:20 Sessions 7 Manual Loads 0 Difficulty Rogue Special Mode None Game No. 248 Rogue 248 Adventurer 0 Explorer 0 Win Type - Total 4 Types 2/1/0/1/0/0/0/0/0 Lore% 65 Gallery% 75 Achievement% 66 Wizard Run 0 Options --------- Layout 0 ASCII 0 Keyboard 0 Movement Numpad Keybinds 0 Fullscreen 1 Font 18/SmallcapsGlow Map View 76x50 Zoom Use 0% Tactical HUD 1 Map Filters NONE Filters NONE Steam 1 RUN: fc18fbdb-8ef5-4c05-9e58-3b10a3946c43